bitfinex-derivatives/quotes_ETHF0:USTF0_20250919
["timestamp","ask_amount","ask_price","bid_price","bid_amount"]
[1758298164879,6.5776484,4486.4,4486.3,2.232]
[1758298165388,6.3516484,4486.4,4486.3,2.232]
[1758298165587,6.5776484,4486.4,4486.3,2.232]
[1758298170481,6.3516484,4486.4,4486.3,2.232]
[1758298170684,6.5776484,4486.4,4486.3,2.232]
[1758298171090,6.3516484,4486.4,4486.3,2.232]
[1758298171388,6.5776484,4486.4,4486.3,2.232]
[1758298176785,0.7332484,4486.4,4486.3,4.27233]
[1758298176986,0.9592484,4486.4,4486.3,4.27233]
[1758298177485,2.3159484,4486.4,4486.3,4.27233]
[1758298177690,2.5419484,4486.4,4486.3,4.27233]
[1758298179892,0.7332484,4486.4,4486.3,4.27233]
[1758298180190,0.9592484,4486.4,4486.3,4.27233]
[1758298181692,2.0979484,4486.4,4486.3,4.27233]
[1758298183395,0.9592484,4486.4,4486.3,4.27233]
[1758298184293,1.6190484,4486.4,4486.3,4.27233]
[1758298186798,0.9592484,4486.4,4486.3,4.27233]
[1758298187499,2.0979484,4486.4,4486.3,4.27233]
[1758298187694,1.4381484,4486.4,4486.3,4.27233]
[1758298188596,2.5419484,4486.4,4486.3,2.232]
[1758298189299,2.56749704,4486.4,4486.3,2.232]
[1758298190001,1.5827,4485.6,4485.5,4.8471]
[1758298190200,2.56749704,4485.6,4485.5,4.8471]
[1758298190400,0.75879704,4485.6,4485.5,5.1248]
[1758298190598,0.98479704,4485.6,4485.5,5.1248]
[1758298191198,0.75879704,4485.6,4485.5,9.1248]
[1758298191395,0.98479704,4485.6,4485.5,9.1248]
[1758298194202,0.75879704,4485.6,4485.5,9.1248]
[1758298194503,0.98479704,4485.6,4485.5,9.1248]
[1758298194904,0.75879704,4485.6,4485.5,9.1248]
[1758298195098,0.98479704,4485.6,4485.5,9.1248]
[1758298197402,0.98479704,4485.6,4485.5,5.1248]
[1758298199904,0.98479704,4485.6,4485.5,5.52591]
[1758298201006,0.4492,4486.1,4486.0,0.87406]
[1758298201208,0.7108,4486.3,4486.0,1.60116]
[1758298201507,1.16,4486.3,4486.2,1.644]
[1758298201807,1.8534,4486.3,4486.2,1.644]
[1758298202196,1.8534,4486.3,4486.2,0.939]
[1758298202403,1.6274,4486.3,4486.2,0.939]
[1758298202604,1.8534,4486.3,4486.2,0.939]
[1758298203405,1.8534,4486.3,4486.2,0.466]
[1758298203610,1.8957,4486.0,4485.9,1.24460296]
[1758298203807,1.8957,4486.0,4485.9,1.71060296]
[1758298204414,2.1217,4486.0,4485.9,1.71060296]
[1758298204911,2.1217,4486.0,4485.9,2.41560296]
[1758298205315,1.8957,4486.0,4485.9,2.41560296]
[1758298205515,2.1217,4486.0,4485.9,2.81667296]
[1758298206515,2.1217,4486.0,4485.9,3.28967296]
[1758298207211,1.8534,4486.0,4485.9,3.28967296]
[1758298208119,1.6274,4486.0,4485.9,3.28967296]
[1758298208318,1.8534,4486.0,4485.9,3.28967296]
[1758298211823,1.386,4486.0,4485.9,3.28967296]
[1758298212217,1.16,4486.0,4485.9,3.28967296]
[1758298212418,1.386,4486.0,4485.9,3.28967296]
[1758298213024,2.14799561,4486.0,4485.9,3.28967296]
[1758298213217,1.2112038,4486.0,4485.9,3.28967296]
[1758298213418,0.9880038,4486.0,4485.9,3.28967296]
[1758298213719,0.7620038,4486.0,4485.9,3.28967296]
[1758298213923,0.9880038,4486.0,4485.9,3.28967296]
[1758298214124,0.7620038,4486.0,4485.9,3.28967296]
[1758298214418,0.9880038,4486.0,4485.9,3.28967296]
[1758298217022,1.6988038,4486.0,4485.9,3.28967296]
[1758298217225,1.69886713,4486.0,4485.9,3.28967296]
[1758298217528,2.14806713,4486.0,4485.9,3.28967296]
[1758298218829,2.61546713,4486.0,4485.9,3.28967296]
[1758298220026,2.38946713,4486.0,4485.9,3.28967296]
[1758298220224,2.61546713,4486.0,4485.9,3.28967296]
[1758298223329,1.92206713,4486.0,4485.9,3.28967296]
[1758298223524,2.14706713,4486.0,4485.9,3.28967296]
[1758298225031,2.14493012,4486.0,4485.9,3.28967296]
[1758298226934,1.91993012,4486.0,4485.9,3.28967296]
[1758298227133,2.14493012,4486.0,4485.9,3.28967296]
[1758298227931,1.91993012,4486.0,4485.9,3.28967296]
[1758298228131,0.98493012,4486.0,4485.9,3.28967296]
[1758298231039,1.43843012,4486.0,4485.9,3.28967296]
[1758298231240,2.12143012,4486.0,4485.9,3.28967296]
[1758298232137,0.98493012,4486.0,4485.9,3.28967296]
[1758298235039,1.66793012,4486.0,4485.9,3.28967296]
[1758298236445,2.56163012,4486.0,4485.9,3.28967296]
[1758298239848,2.12143012,4486.0,4485.9,3.28967296]
[1758298240052,0.98493012,4486.0,4485.9,3.28967296]
[1758298240850,0.75300954,4486.0,4485.9,3.28967296]
[1758298241040,0.97800954,4486.0,4485.9,3.28967296]
[1758298242950,1.66100954,4486.0,4485.9,3.28967296]
[1758298243352,0.97800954,4486.0,4485.9,3.28967296]
[1758298243551,0.75300954,4486.0,4485.9,3.28967296]
[1758298243854,0.97800954,4486.0,4485.9,3.28967296]
[1758298249553,0.97213987,4486.0,4485.9,3.28967296]
[1758298250158,2.10863987,4486.0,4485.9,3.28967296]
[1758298250460,2.32383987,4486.0,4485.9,3.28967296]
[1758298250658,2.54883987,4486.0,4485.9,3.28967296]
[1758298250861,2.81233987,4486.0,4485.9,3.28967296]
[1758298252655,2.58140853,4486.0,4485.9,3.28967296]
[1758298252861,2.81237082,4486.0,4485.9,3.28967296]
[1758298253752,2.54887082,4486.0,4485.9,3.28967296]
[1758298254363,2.81237082,4486.0,4485.9,3.28967296]
[1758298255462,2.58737082,4486.0,4485.9,3.28967296]
[1758298255662,2.81237082,4486.0,4485.9,3.28967296]
[1758298261164,2.81237082,4486.0,4485.9,1.24460296]
[1758298261757,2.81237082,4486.0,4485.9,2.75937296]
[1758298262967,2.81237082,4486.0,4485.9,2.81010296]
[1758298263162,0.6305,4485.9,4485.5,0.0222]
[1758298263355,1.5303,4485.6,4485.5,0.0222]
[1758298263561,2.50247082,4485.6,4485.5,0.0222]
[1758298263867,1.8019,4485.0,4484.9,4.3215]
[1758298264065,2.77407082,4485.0,4484.9,4.3215]
[1758298264259,1.37767082,4485.0,4484.9,4.7733]
[1758298264461,0.97217082,4485.0,4484.9,4.7733]
[1758298264762,1.60267082,4485.0,4484.9,4.7733]
[1758298264964,1.60267082,4485.0,4484.9,7.0032]
[1758298266954,0.97217082,4485.0,4484.9,7.0032]
[1758298267162,0.99322504,4485.0,4484.9,7.40436]
[1758298267363,3.6702,4486.0,4485.9,0.8857]
[1758298267563,3.8952,4486.0,4485.9,1.96657]
[1758298267960,4.5257,4486.0,4485.9,1.96657]
[1758298269269,1.7553,4486.0,4485.9,1.96657]
[1758298270765,2.0269,4486.0,4485.9,1.96657]
[1758298271065,1.7553,4486.0,4485.9,1.96657]
[1758298272563,2.0269,4486.0,4485.9,1.51477]
[1758298273968,2.0269,4486.0,4485.9,1.96657]
[1758298274162,1.3179,4486.0,4485.9,1.96657]
[1758298274368,0.6874,4486.0,4485.9,1.96657]
[1758298274771,1.0929,4486.3,4486.2,1.96654]
[1758298274974,1.3179,4486.3,4486.2,1.96654]
[1758298275271,1.0929,4486.3,4486.2,1.96654]
[1758298275464,1.3179,4486.3,4486.2,1.96654]
[1758298275861,1.3179,4486.3,4486.2,0.4339]
[1758298275862,1.7553,4486.3,4486.2,0.4339]
[1758298276062,1.1248,4486.3,4486.1,1.08085]
[1758298276267,1.5303,4486.2,4486.1,3.74465]
[1758298276464,1.5303,4486.2,4486.1,3.3436]
[1758298276669,1.5303,4486.2,4486.1,2.6638]
[1758298279476,2.29738389,4486.2,4486.1,2.6638]
[1758298279980,2.29738389,4486.2,4486.1,2.2299]
[1758298280276,2.52029389,4486.2,4486.1,2.2299]
[1758298280666,2.29738389,4486.2,4486.1,2.2299]
[1758298280973,1.5303,4485.7,4485.6,2.631]
[1758298281172,2.52238389,4485.7,4485.6,3.7447]
[1758298281675,2.52238389,4485.7,4485.6,3.3436]
[1758298282375,2.52238389,4485.7,4485.6,2.6638]
[1758298282877,2.52238389,4485.7,4485.6,3.0649]
[1758298284377,2.52238389,4485.7,4485.6,2.2299]
[1758298284772,6.74531389,4485.7,4485.6,2.2299]
[1758298285673,6.52238389,4485.7,4485.1,0.40114]
[1758298285874,1.5303,4485.2,4485.1,1.51484]
[1758298286075,2.52238389,4485.2,4485.1,1.51484]
[1758298286278,2.51984418,4485.2,4485.1,1.51484]
[1758298286877,2.51984418,4485.2,4485.1,1.1137]
[1758298287481,2.51984418,4485.2,4485.1,0.4339]
[1758298289075,2.51984418,4485.2,4485.1,0.83504]
[1758298289279,2.51984418,4485.2,4485.1,0.4339]
[1758298290777,2.52503047,4485.2,4485.1,0.4339]
[1758298291977,2.52503047,4485.2,4485.1,0.83504]
[1758298292176,2.52503047,4485.2,4485.1,0.4339]
[1758298292382,1.8772,4485.0,4484.9,3.60895]
[1758298292579,2.87193047,4485.0,4484.9,3.60895]
[1758298292780,2.87193047,4485.0,4484.9,4.05165]
[1758298293085,2.87193047,4485.0,4484.9,5.15425]
[1758298293680,0.6837,4484.9,4484.7,2.2299]
[1758298293984,2.59993047,4484.8,4484.7,2.6726]
[1758298294882,2.59993047,4484.8,4484.7,3.07378]
[1758298295178,2.59993047,4484.8,4484.7,3.73178]
[1758298298881,2.59993047,4484.8,4484.7,3.07378]
[1758298299079,6.82291047,4484.8,4484.5,0.0222]
[1758298299280,1.1935,4484.0,4483.9,4.05175]
[1758298299486,2.87193047,4484.0,4483.9,4.70975]
[1758298300387,2.87193047,4484.0,4483.9,5.15435]
[1758298301178,2.87193047,4484.0,4483.9,3.2078]
[1758298301390,2.87193047,4484.0,4483.6,0.658]
[1758298301587,1.6052,4483.7,4483.6,1.50197]
[1758298301783,2.08398899,4483.7,4483.6,1.1007]
[1758298301983,2.08398899,4483.7,4483.6,1.50197]
[1758298302583,1.8302,4483.7,4483.6,1.50197]
[1758298302789,2.08349866,4483.7,4483.6,1.50197]
[1758298303285,2.08349866,4483.7,4483.6,1.1007]
[1758298304896,2.08349866,4483.7,4483.6,1.50197]
[1758298305896,2.08349866,4483.7,4483.6,1.94657]
[1758298306594,2.08333007,4483.7,4483.6,1.94657]
[1758298309795,2.08337858,4483.7,4483.6,1.94657]
[1758298310598,2.08337858,4483.7,4483.6,1.28857]
[1758298311098,2.08337858,4483.7,4483.6,1.94657]
[1758298315398,2.08252495,4483.7,4483.6,1.94657]
[1758298315796,1.39342495,4483.7,4483.6,1.94657]
[1758298315999,0.25232495,4483.7,4483.6,1.94657]
[1758298316200,0.47732495,4483.7,4483.6,1.94657]
[1758298317200,0.25232495,4483.7,4483.6,1.94657]
[1758298317497,0.25232495,4483.7,4483.6,6.1696]
[1758298318391,0.25232495,4483.7,4483.6,5.94657]
[1758298321496,1.38512495,4483.7,4483.6,1.5453]
[1758298321804,1.85092495,4483.7,4483.6,1.94657]
[1758298323903,1.38512495,4483.7,4483.6,1.94657]
[1758298326001,1.85092495,4483.7,4483.6,1.94657]
[1758298326202,2.36696557,4483.7,4483.6,1.94657]
[1758298331008,2.59196557,4483.7,4483.6,1.94657]
[1758298331305,2.59196557,4483.7,4483.6,0.40127]
[1758298331507,2.59196557,4483.7,4483.6,0.83177]
[1758298331709,2.59196557,4483.7,4483.6,0.40127]
[1758298332609,2.59196557,4483.7,4483.6,0.83177]
[1758298332909,2.59196557,4483.7,4483.6,1.52047]
[1758298333310,2.59196557,4483.7,4483.6,0.83177]
[1758298333511,2.59196557,4483.7,4483.6,0.40127]
[1758298334408,2.59196557,4483.7,4483.6,0.83177]
[1758298334611,2.59196557,4483.7,4483.6,1.52047]
[1758298334810,2.59196557,4483.7,4483.6,1.95747]
[1758298337407,2.59196557,4483.7,4483.6,0.83177]
[1758298338111,2.59196557,4483.7,4483.6,1.52047]
[1758298338412,2.59196557,4483.7,4483.6,0.83177]
[1758298339114,2.59196557,4483.7,4483.6,0.40127]
[1758298340214,2.59196557,4483.7,4483.6,0.83177]
[1758298340417,2.59196557,4483.7,4483.6,1.52047]
[1758298340913,2.59196557,4483.7,4483.6,0.83177]
[1758298341110,2.59196557,4483.7,4483.6,0.40127]
[1758298347122,2.36696557,4483.7,4483.6,1.52047]
[1758298347322,2.59196557,4483.7,4483.6,1.95747]
[1758298348320,2.36696557,4483.7,4483.6,1.95747]
[1758298348521,2.59196557,4483.7,4483.6,1.95747]
[1758298349124,2.36696557,4483.7,4483.6,1.95747]
[1758298349426,2.59196557,4483.7,4483.6,1.95747]
[1758298354023,2.36696557,4483.7,4483.6,1.95747]
[1758298354222,2.59196557,4483.7,4483.6,1.95747]
[1758298355526,2.59196557,4483.7,4483.6,1.26877]
[1758298355726,2.59196557,4483.7,4483.6,0.83177]
[1758298356523,2.58620709,4483.7,4483.6,0.83177]
[1758298356730,2.58620709,4483.7,4483.6,1.93677]
[1758298357129,2.36120709,4483.7,4483.6,1.93677]
[1758298357322,2.58620709,4483.7,4483.6,1.93677]
[1758298362123,2.36120709,4483.7,4483.6,1.93677]
[1758298362328,2.58620709,4483.7,4483.6,1.93677]
[1758298363831,2.58620709,4483.7,4483.6,1.48047]
[1758298364026,2.58620709,4483.7,4483.6,0.40127]
[1758298364929,1.5071,4483.6,4483.5,2.2308]
[1758298365230,2.26970709,4483.6,4483.5,2.2308]
[1758298365429,0.2501,4483.5,4482.9,3.2078]
[1758298365732,0.2501,4482.5,4482.4,3.2078]
[1758298365928,2.22876647,4482.5,4482.4,3.2078]
[1758298366238,2.51980709,4482.5,4482.4,3.2078]
[1758298366429,2.74480709,4482.5,4482.4,4.7407]
[1758298368934,2.74480709,4482.5,4482.4,4.092]
[1758298369132,2.74480709,4482.5,4482.4,3.6357]
[1758298369335,2.74480709,4482.5,4482.4,3.2078]
[1758298371227,2.74480709,4482.5,4482.4,3.60918]
[1758298371936,2.74480709,4482.5,4482.4,3.2078]
[1758298372436,2.74480709,4482.5,4482.4,3.60918]
[1758298372624,2.74480709,4482.5,4482.4,3.2078]
[1758298372829,2.74480709,4482.5,4481.9,3.28152]
[1758298373030,1.5071,4482.0,4481.9,3.70942]
[1758298373236,2.51079058,4482.0,4481.9,3.70942]
[1758298374230,1.97866647,4482.0,4481.9,3.70942]
[1758298374741,1.97866647,4482.0,4481.9,4.16572]
[1758298378637,2.23946647,4482.0,4481.9,4.16572]
[1758298379438,1.97866647,4482.0,4481.9,4.16572]
[1758298380239,1.9607119,4482.0,4481.9,4.16572]
[1758298380841,0.9258,4483.5,4483.4,1.91459]
[1758298381140,0.75464333,4483.5,4483.4,5.12239]
[1758298381337,37.2483,4484.2,4484.1,1.26373]
[1758298381536,36.9035974,4484.2,4484.1,1.91453]
[1758298382329,36.6785974,4484.2,4484.1,1.91453]
[1758298382542,36.374,4484.2,4484.1,1.91453]
[1758298382741,36.149,4484.2,4484.1,1.91453]
[1758298382935,36.374,4484.2,4484.1,1.91453]
[1758298383139,36.149,4484.2,4484.1,1.91453]
[1758298383341,36.374,4484.2,4484.1,1.91453]
[1758298384541,36.374,4484.2,4484.1,4.14593]
[1758298385140,37.0497,4484.2,4484.1,4.14593]
[1758298385445,37.2483,4484.2,4484.1,4.14593]
[1758298385644,37.4733,4484.2,4484.1,4.14593]
[1758298386146,36.149,4484.2,4484.1,4.14593]
[1758298386345,36.374,4484.2,4484.1,4.14593]
[1758298387445,36.7976,4484.2,4484.1,4.14593]
[1758298387646,37.4733,4484.2,4484.1,4.14593]
[1758298389042,1.0993,4484.2,4484.1,4.14593]
[1758298389352,1.3243,4484.2,4484.1,4.14593]
[1758298390546,0.225,4484.2,4484.1,4.14593]
[1758298390743,1.0993,4484.8,4484.7,1.91448]
[1758298391048,1.1332,4485.5,4485.4,1.26361]
[1758298391242,1.1332,4485.5,4485.4,1.91441]
[1758298391446,1.0993,4485.5,4485.4,1.91441]
[1758298391646,1.3243,4485.5,4485.4,1.91441]
[1758298392148,1.7731,4485.5,4485.4,1.91441]
[1758298400756,1.5481,4485.5,4485.4,1.91441]
[1758298400948,1.7731,4485.5,4485.4,1.91441]
[1758298401455,1.5481,4485.5,4485.4,1.91441]
[1758298401655,1.7731,4485.5,4485.4,1.91441]
[1758298402656,1.5481,4485.5,4485.4,1.91441]
[1758298402855,2.0339,4485.5,4485.4,1.91441]
[1758298404156,1.8089,4485.5,4485.4,1.91441]
[1758298404357,0.6757,4485.5,4485.4,1.91441]
[1758298404556,0.9007,4485.5,4485.4,1.91441]
[1758298405154,1.3243,4485.5,4485.4,1.91441]
[1758298405456,1.7731,4485.5,4485.4,1.91441]
[1758298406153,1.5481,4485.5,4485.4,1.91441]
[1758298406354,1.7731,4485.5,4485.4,1.91441]
[1758298407055,2.0339,4485.5,4485.4,1.5133]
[1758298407255,2.0339,4485.5,4485.4,1.91441]
[1758298408059,2.26095761,4485.5,4485.4,1.91441]
[1758298409555,2.00015761,4485.5,4485.4,1.91441]
[1758298409854,1.77515761,4485.5,4485.4,1.91441]
[1758298410058,2.25145761,4485.5,4485.4,1.91441]
[1758298410459,2.25178927,4485.5,4485.4,1.91441]
[1758298410859,2.25178927,4485.5,4485.4,0.84791]
[1758298411361,2.78145956,4485.5,4485.4,0.84791]
[1758298412856,2.78145956,4485.5,4485.2,5.4392]
[1758298413158,1.4943,4485.3,4485.2,2.2314]
[1758298413358,2.25135956,4485.3,4485.2,2.2314]
[1758298413566,2.47430956,4485.3,4485.2,2.2314]
[1758298413955,6.51313149,4485.3,4485.2,0.8682]
[1758298414258,6.51313149,4485.3,4484.8,0.0222]
[1758298414454,1.20501956,4485.2,4484.8,0.0222]
[1758298414651,0.75705956,4485.1,4485.0,0.2706]
[1758298414959,0.98205956,4485.1,4485.0,0.9602]
[1758298416661,0.75705956,4485.1,4485.0,0.9602]
[1758298416856,0.98205956,4485.1,4485.0,1.8137]
[1758298417664,0.75705956,4485.1,4485.0,1.8137]
[1758298418261,0.98205956,4485.1,4485.0,1.8137]
[1758298418651,3.2078,4485.5,4485.3,0.6896]
[1758298418851,0.225,4485.4,4485.3,0.6896]
[1758298419154,0.225,4485.4,4485.2,1.24774044]
[1758298419563,0.44795,4485.4,4485.2,1.24774044]
[1758298419764,0.225,4485.4,4485.2,1.24774044]
[1758298420559,0.225,4485.4,4485.2,1.93734044]
[1758298421462,0.225,4485.4,4485.3,0.6896]
[1758298422564,0.225,4485.4,4485.3,1.126]
[1758298423763,3.24662063,4485.5,4485.3,0.4364]
[1758298423964,0.225,4485.4,4485.3,0.4364]
[1758298424459,3.24662063,4485.5,4485.3,1.126]
[1758298424665,3.24662063,4485.5,4485.4,1.126]
[1758298424862,3.47162063,4485.5,4485.4,1.126]
[1758298425666,3.24662063,4485.5,4485.4,1.126]
[1758298425967,3.47162063,4485.5,4485.4,1.126]
[1758298427867,3.24662063,4485.5,4485.4,1.126]
[1758298428365,3.47162063,4485.5,4485.4,1.126]
[1758298430668,4.22234651,4485.5,4485.4,1.126]
[1758298435866,3.99734651,4485.5,4485.4,1.126]
[1758298436267,4.22234651,4485.5,4485.4,1.126]
[1758298436773,3.99734651,4485.5,4485.4,1.126]
[1758298436969,4.22234651,4485.5,4485.4,1.126]
[1758298437363,4.22234651,4485.5,4485.4,1.5431]
[1758298438173,3.99734651,4485.5,4485.4,1.5431]
[1758298438576,4.22234651,4485.5,4485.4,1.5431]
[1758298438770,3.99734651,4485.5,4485.4,1.5431]
[1758298439075,1.01454651,4485.5,4485.4,1.5431]
[1758298439777,0.97572588,4485.5,4485.4,1.94421]
[1758298441472,3.2078,4486.0,4485.9,0.40107]
[1758298441670,3.98049611,4486.0,4485.9,1.95917]
[1758298441876,4.20549611,4486.0,4485.9,1.95917]
[1758298443281,0.99769611,4486.0,4485.9,1.95917]
[1758298443582,0.99769611,4486.0,4485.9,1.5581]
[1758298445179,0.99769611,4486.0,4485.9,1.95917]
[1758298445681,0.99769611,4486.0,4485.9,1.5581]
[1758298446577,4.20549611,4486.0,4485.9,1.5581]
[1758298446883,4.20549611,4486.0,4485.9,0.656]
[1758298447582,4.20549611,4486.0,4485.7,1.2477]
[1758298447583,8.24431211,4486.0,4485.7,1.048]
[1758298447884,1.60365223,4485.9,4485.7,1.048]
[1758298448084,0.225,4485.8,4485.7,0.7431]
[1758298448378,0.225,4485.8,4485.3,0.656]
[1758298448582,3.2078,4485.4,4485.3,0.656]
[1758298448782,3.4328,4485.4,4485.3,1.5581]
[1758298450283,3.2078,4485.4,4485.3,1.5581]
[1758298450477,3.4328,4485.4,4485.3,1.5581]
[1758298451982,3.2078,4485.4,4485.3,1.5581]
[1758298452187,3.4328,4485.4,4485.3,1.5581]
[1758298453079,3.2078,4485.4,4485.3,1.5581]
[1758298453286,3.4328,4485.4,4485.3,1.5581]
[1758298453476,3.67430045,4485.4,4485.3,1.5581]
[1758298453680,4.1996041,4485.4,4485.3,1.5581]
[1758298454182,3.9746041,4485.4,4485.3,1.5581]
[1758298454388,4.1996041,4485.4,4485.3,1.5581]
[1758298456087,3.9746041,4485.4,4485.3,1.5581]
[1758298456386,4.1996041,4485.4,4485.3,1.5581]
[1758298458289,4.19961918,4485.4,4485.3,1.5581]
[1758298458485,0.76681918,4485.4,4485.3,1.5581]
[1758298458791,0.99181918,4485.4,4485.3,1.95922]
[1758298461489,0.76681918,4485.4,4485.3,1.95922]
[1758298461690,0.99181918,4485.4,4485.3,1.95922]
[1758298463698,0.76681918,4485.4,4485.3,1.95922]
[1758298463898,0.99181918,4485.4,4485.3,1.95922]
[1758298464197,0.76681918,4485.4,4485.3,1.95922]
[1758298464398,0.99181918,4485.4,4485.3,1.95922]
[1758298467494,0.76681918,4485.4,4485.3,1.95922]
[1758298467700,0.99181918,4485.4,4485.3,1.95922]
[1758298468696,3.2078,4486.4,4485.8,1.00269]
[1758298468898,0.98761853,4486.3,4486.2,1.92974]
[1758298470997,0.24451853,4486.3,4486.2,1.92974]
[1758298472300,0.24451853,4486.3,4486.2,1.5287]
[1758298474100,0.01951853,4486.3,4486.2,1.92974]
[1758298474302,0.24451853,4486.3,4486.2,1.92974]
[1758298474902,0.24451853,4486.3,4486.2,1.5287]
[1758298478507,0.01951853,4486.3,4486.2,1.5287]
[1758298478707,0.24451853,4486.3,4486.2,1.5287]
[1758298479112,4.24451853,4486.3,4486.2,0.6502]
[1758298479312,0.24451853,4486.3,4486.2,0.6502]
[1758298480105,0.01951853,4486.3,4486.2,0.6502]
[1758298480409,0.24451853,4486.3,4486.2,0.6502]
[1758298482616,0.24451853,4486.3,4486.2,1.0972]
[1758298482912,0.53891958,4486.3,4486.2,1.0972]
[1758298483113,0.76391958,4486.3,4486.2,1.0972]
[1758298483713,0.74440105,4486.3,4486.2,1.5287]
[1758298483909,0.97605038,4486.3,4486.2,1.5287]
[1758298485808,0.75105038,4486.3,4486.2,1.5287]
[1758298486015,0.97605038,4486.3,4486.2,1.5287]
[1758298490417,0.75105038,4486.3,4486.2,1.5287]
[1758298490618,0.97605038,4486.3,4486.2,1.5287]
[1758298491630,0.97605038,4486.3,4486.2,1.0972]
[1758298492119,0.97605038,4486.3,4486.2,0.6502]
[1758298492425,0.97605038,4486.3,4486.2,1.0972]
[1758298495730,0.75105038,4486.3,4486.2,1.0972]
[1758298496031,0.97605038,4486.3,4486.2,1.5287]
[1758298497628,0.75105038,4486.3,4486.2,1.5287]
[1758298497828,0.97605038,4486.3,4486.2,1.5287]
[1758298501132,0.75105038,4486.3,4486.2,1.5287]
[1758298501332,0.97605038,4486.3,4486.2,1.5287]
[1758298502622,0.75105038,4486.3,4486.2,1.5287]
[1758298502930,0.97605038,4486.3,4486.2,1.5287]
[1758298503132,0.75105038,4486.3,4486.2,1.5287]
[1758298503333,0.97605038,4486.3,4486.2,1.5287]
[1758298503937,0.75105038,4486.3,4486.2,1.5287]
[1758298504339,0.97605038,4486.3,4486.2,1.5287]
[1758298505439,0.97605038,4486.3,4486.2,0.6502]
[1758298506839,0.75105038,4486.3,4486.2,0.6502]
[1758298507040,4.97605038,4486.3,4486.2,0.6502]
[1758298507235,0.362,4486.1,4486.0,0.0222]
[1758298507441,1.2173,4485.6,4485.5,0.022]
[1758298507642,5.40115038,4485.6,4485.5,0.022]
[1758298508039,5.40115038,4485.6,4485.5,0.4487]
[1758298508929,1.2173,4485.5,4485.4,1.7809]
[1758298509131,1.96835038,4485.5,4485.0,0.2706]
[1758298509334,0.8592,4485.1,4485.0,1.1298]
[1758298509541,1.83525038,4485.1,4485.0,1.1298]
[1758298509942,1.83525038,4485.1,4485.0,1.7363]
[1758298510435,1.60360105,4485.1,4485.0,1.7363]
[1758298510639,5.05734369,4485.1,4485.0,1.7363]
[1758298511337,3.05254369,4485.1,4485.0,1.7363]
[1758298515441,3.2078,4486.3,4486.2,1.4657]
[1758298515637,3.2078,4486.8,4486.7,1.4657]
[1758298515844,36.128,4486.9,4486.8,0.6065]
[1758298516040,36.353,4486.9,4486.8,1.4657]
[1758298518739,36.7875,4486.9,4486.8,1.4657]
[1758298519454,36.353,4486.9,4486.8,1.4657]
[1758298519953,36.128,4486.9,4486.8,1.4657]
[1758298520156,36.353,4486.9,4486.8,1.4657]
[1758298520355,36.7875,4486.9,4486.8,1.4657]
[1758298521251,36.128,4486.9,4486.8,1.4657]
[1758298521445,36.353,4486.9,4486.8,1.4657]
[1758298521757,36.7875,4486.9,4486.8,1.4657]
[1758298523247,37.5619507,4486.9,4486.8,1.4657]
[1758298524055,37.3369507,4486.9,4486.8,1.4657]
[1758298524247,37.5619507,4486.9,4486.8,1.4657]
[1758298524853,37.3369507,4486.9,4486.8,1.4657]
[1758298525054,37.5619507,4486.9,4486.8,1.4657]
[1758298525655,37.3369507,4486.9,4486.8,1.4657]
[1758298525858,37.5619507,4486.9,4486.8,1.4657]
[1758298527756,37.5619507,4486.9,4486.8,1.86669]
[1758298527958,37.9866507,4486.9,4486.8,1.86669]
[1758298528253,38.09088889,4486.9,4486.8,1.86669]
[1758298528958,37.04578889,4486.9,4486.8,1.86669]
[1758298529348,38.11788889,4486.9,4486.8,1.86669]
[1758298530153,37.8596,4486.9,4486.8,1.86669]
[1758298530354,37.46672585,4486.9,4486.8,1.86669]
[1758298530554,37.04552585,4486.9,4486.8,1.86669]
[1758298531557,37.69642585,4486.9,4486.8,1.86669]
[1758298531758,38.11762585,4486.9,4486.8,1.86669]
[1758298532455,37.89262585,4486.9,4486.8,1.86669]
[1758298532655,38.11762585,4486.9,4486.8,1.86669]
[1758298534259,37.89262585,4486.9,4486.8,1.86669]
[1758298534458,38.11762585,4486.9,4486.8,1.86669]
[1758298534953,38.11762585,4486.9,4486.8,1.4657]
[1758298535454,38.11762585,4486.9,4486.8,1.86669]
[1758298536760,38.11762585,4486.9,4486.8,1.4657]
[1758298539463,1.77752585,4486.8,4486.7,2.8574]
[1758298539966,2.00252585,4486.8,4486.7,2.8574]
[1758298540158,2.51884849,4486.8,4486.7,2.8574]
[1758298542666,2.51884849,4486.8,4486.7,2.2296]
[1758298543369,2.51884849,4486.8,4486.7,2.8574]
[1758298544666,2.51884849,4486.8,4486.7,3.2997]
[1758298548761,5.72664849,4486.8,4486.7,2.2296]
[1758298549070,5.9495285,4486.8,4486.7,2.2296]
[1758298549771,5.72664849,4486.8,4486.7,2.2296]
[1758298551566,9.72664849,4486.8,4486.7,2.19624266]
[1758298551868,1.5195,4486.3,4486.2,0.0222]
[1758298552069,5.72664849,4486.3,4486.2,0.0222]
[1758298553472,5.72664849,4486.3,4486.2,1.92044]
[1758298553473,0.99934849,4486.3,4486.2,1.92044]
[1758298553862,0.77434849,4486.3,4486.2,5.92044]
[1758298554067,0.99934849,4486.3,4486.2,5.92044]
[1758298554266,0.99934849,4486.3,4486.2,9.12824]
[1758298555273,36.5754,4486.9,4486.8,1.5194]
[1758298555472,36.8004,4486.9,4486.8,1.92039]
[1758298557072,37.2216,4486.9,4486.8,1.92039]
[1758298557472,37.8725,4486.9,4486.8,1.92039]
[1758298561777,37.6475,4486.9,4486.8,1.92039]
[1758298561979,37.8725,4486.9,4486.8,1.92039]
[1758298564279,37.6475,4486.9,4486.8,1.92039]
[1758298564578,37.8725,4486.9,4486.8,1.92039]
[1758298564778,37.6475,4486.9,4486.8,1.92039]
[1758298564974,37.8725,4486.9,4486.8,1.92039]
[1758298566676,0.8926,4486.7,4486.6,0.6666]
[1758298566881,1.7804,4486.7,4486.6,1.5114]
[1758298567178,2.56261708,4486.7,4486.6,1.91241]
[1758298568279,2.33761708,4486.7,4486.6,1.91241]